[Event "Titled Tuesday Blitz February 15 Late 2022"]
[White "Roque Sola, Jose Luis"]
[Black "Kwon, Sehyun"]
[WhiteFideId "5120390"]
[BlackFideId "13203088"]
[WhiteElo "1983"]
[BlackElo "1778"]
[Result "0-1"]
[Round "01"]
[TimeControl "180+1"]
[Date "2022.02.16"]
[WhiteClock "0:02:15"]
[BlackClock "0:01:37"]

1. c4 {[%clk 0:03:00]}  c5 {[%clk 0:02:59]} 2. Nc3 {[%clk 0:02:58]}  g6 {[%clk 0:02:59]} 3. Nf3 {[%clk 0:02:57]}  Bg7 {[%clk 0:03:00]} 4. g3 {[%clk 0:02:57]}  Nf6 {[%clk 0:03:00]} 5. Bg2 {[%clk 0:02:58]}  O-O {[%clk 0:03:01]} 6. O-O {[%clk 0:02:56]}  Nc6 {[%clk 0:03:01]} 7. a3 {[%clk 0:02:54]}  d5 {[%clk 0:02:58]} 8. cxd5 {[%clk 0:02:53]}  Nxd5 {[%clk 0:02:59]} 9. d3 {[%clk 0:02:53]}  Nxc3 {[%clk 0:02:56]} 10. bxc3 {[%clk 0:02:52]}  Bxc3 {[%clk 0:02:57]} 11. Rb1 {[%clk 0:02:53]}  Bg7 {[%clk 0:02:58]} 12. Be3 {[%clk 0:02:46]}  Qd6 {[%clk 0:02:54]} 13. Qc1 {[%clk 0:02:42]}  b6 {[%clk 0:02:53]} 14. Bf4 {[%clk 0:02:40]}  Qe6 {[%clk 0:01:42]} 15. Ng5 {[%clk 0:02:24]}  Qd7 {[%clk 0:01:40]} 16. Ne4 {[%clk 0:02:18]}  Bb7 {[%clk 0:01:39]} 17. Bh6 {[%clk 0:02:17]}  Nd4 {[%clk 0:01:38]} 18. Bxg7 {[%clk 0:02:15]}  Nxe2+ {[%clk 0:01:37]} 0-1


[Site "https://www.chess.com"]

[Event "Titled Tuesday Blitz February 15 Late 2022"]
[White "Rorrer, Grayson"]
[Black "Gatterer, Florian"]
[WhiteFideId "30944996"]
[BlackFideId "811688"]
[WhiteElo "2122"]
[BlackElo "2218"]
[Result "1-0"]
[Round "01"]
[TimeControl "180+1"]
[Date "2022.02.16"]
[WhiteClock "0:00:04"]
[BlackClock "0:00:01"]

1. e4 {[%clk 0:03:00]}  e5 {[%clk 0:02:59]} 2. Nc3 {[%clk 0:02:59]}  Nf6 {[%clk 0:02:58]} 3. d4 {[%clk 0:02:59]}  exd4 {[%clk 0:02:55]} 4. Qxd4 {[%clk 0:03:00]}  Nc6 {[%clk 0:02:54]} 5. Qd3 {[%clk 0:03:01]}  Bb4 {[%clk 0:02:47]} 6. Bd2 {[%clk 0:03:00]}  O-O {[%clk 0:02:41]} 7. O-O-O {[%clk 0:02:59]}  d6 {[%clk 0:02:42]} 8. Qg3 {[%clk 0:02:56]}  Bg4 {[%clk 0:02:33]} 9. f3 {[%clk 0:02:51]}  Be6 {[%clk 0:02:16]} 10. Nge2 {[%clk 0:02:52]}  Kh8 {[%clk 0:02:10]} 11. a3 {[%clk 0:02:43]}  Ba5 {[%clk 0:02:08]} 12. h4 {[%clk 0:02:39]}  Nh5 {[%clk 0:02:06]} 13. Qg5 {[%clk 0:02:25]}  Nf6 {[%clk 0:01:53]} 14. h5 {[%clk 0:02:21]}  h6 {[%clk 0:01:52]} 15. Qh4 {[%clk 0:02:08]}  Ne5 {[%clk 0:01:51]} 16. Nd4 {[%clk 0:02:06]}  Bb6 {[%clk 0:01:41]} 17. Nde2 {[%clk 0:01:39]}  Nc4 {[%clk 0:01:39]} 18. Bf4 {[%clk 0:01:32]}  Be3+ {[%clk 0:01:37]} 19. Kb1 {[%clk 0:01:30]}  Rb8 {[%clk 0:01:29]} 20. Nd4 {[%clk 0:01:25]}  Bxf4 {[%clk 0:01:06]} 21. Qxf4 {[%clk 0:01:21]}  b5 {[%clk 0:00:53]} 22. Nc6 {[%clk 0:01:15]}  Qd7 {[%clk 0:00:48]} 23. Nxb8 {[%clk 0:01:15]}  Rxb8 {[%clk 0:00:48]} 24. Bxc4 {[%clk 0:01:05]}  Bxc4 {[%clk 0:00:39]} 25. e5 {[%clk 0:01:05]}  Ne8 {[%clk 0:00:33]} 26. g4 {[%clk 0:01:00]}  a5 {[%clk 0:00:31]} 27. Ne4 {[%clk 0:00:51]}  b4 {[%clk 0:00:22]} 28. Nxd6 {[%clk 0:00:23]}  cxd6 {[%clk 0:00:19]} 29. Qxc4 {[%clk 0:00:22]}  bxa3 {[%clk 0:00:20]} 30. b3 {[%clk 0:00:22]}  a4 {[%clk 0:00:20]} 31. exd6 {[%clk 0:00:17]}  axb3 {[%clk 0:00:20]} 32. cxb3 {[%clk 0:00:17]}  a2+ {[%clk 0:00:20]} 33. Kxa2 {[%clk 0:00:17]}  Nxd6 {[%clk 0:00:18]} 34. Qd4 {[%clk 0:00:13]}  Ra8+ {[%clk 0:00:16]} 35. Kb2 {[%clk 0:00:12]}  Qc7 {[%clk 0:00:07]} 36. Qxd6 {[%clk 0:00:10]}  Qa7 {[%clk 0:00:06]} 37. Ra1 {[%clk 0:00:05]}  Qf2+ {[%clk 0:00:06]} 38. Kb1 {[%clk 0:00:05]}  Re8 {[%clk 0:00:05]} 39. Qc6 {[%clk 0:00:02]}  Re2 {[%clk 0:00:05]} 40. Ra8+ {[%clk 0:00:02]}  Kh7 {[%clk 0:00:04]} 41. Qc3 {[%clk 0:00:03]}  g6 {[%clk 0:00:04]} 42. hxg6+ {[%clk 0:00:03]}  Kxg6 {[%clk 0:00:04]} 43. Rg8+ {[%clk 0:00:03]}  Kh7 {[%clk 0:00:01]} 44. Qg7# {[%clk 0:00:04]} 1-0


[Site "https://www.chess.com"]

[Event "Titled Tuesday Blitz February 15 Late 2022"]
[White "Rosen, Eric"]
[Black "Nepomniachtchi, Ian"]
[WhiteFideId "2032562"]
[BlackFideId "4168119"]
[WhiteElo "2362"]
[BlackElo "2740"]
[Result "0-1"]
[Round "01"]
[TimeControl "180+1"]
[Date "2022.02.15"]
[WhiteClock "0:00:04"]
[BlackClock "0:00:13"]

1. d4 {[%clk 0:02:57]}  Nf6 {[%clk 0:02:59]} 2. Bf4 {[%clk 0:02:57]}  c5 {[%clk 0:02:58]} 3. e3 {[%clk 0:02:57]}  g6 {[%clk 0:02:56]} 4. Nf3 {[%clk 0:02:55]}  Bg7 {[%clk 0:02:57]} 5. Nbd2 {[%clk 0:02:50]}  O-O {[%clk 0:02:57]} 6. Bc4 {[%clk 0:02:50]}  d5 {[%clk 0:02:56]} 7. Be2 {[%clk 0:02:50]}  Nc6 {[%clk 0:02:53]} 8. O-O {[%clk 0:02:31]}  Nh5 {[%clk 0:02:52]} 9. Be5 {[%clk 0:02:13]}  Nxe5 {[%clk 0:02:45]} 10. Nxe5 {[%clk 0:02:10]}  cxd4 {[%clk 0:02:45]} 11. exd4 {[%clk 0:02:10]}  Nf4 {[%clk 0:02:45]} 12. c3 {[%clk 0:02:00]}  f6 {[%clk 0:02:34]} 13. Nd3 {[%clk 0:01:49]}  Nxd3 {[%clk 0:02:34]} 14. Bxd3 {[%clk 0:01:50]}  e5 {[%clk 0:02:35]} 15. dxe5 {[%clk 0:01:50]}  fxe5 {[%clk 0:02:36]} 16. Qb3 {[%clk 0:01:51]}  Kh8 {[%clk 0:02:35]} 17. Rad1 {[%clk 0:01:41]}  a5 {[%clk 0:02:29]} 18. Bb5 {[%clk 0:01:33]}  Bg4 {[%clk 0:02:25]} 19. f3 {[%clk 0:01:27]}  Be6 {[%clk 0:02:25]} 20. Qa4 {[%clk 0:01:23]}  Qb6+ {[%clk 0:02:22]} 21. Kh1 {[%clk 0:01:23]}  Rf4 {[%clk 0:02:09]} 22. c4 {[%clk 0:01:19]}  Raf8 {[%clk 0:02:05]} 23. Qc2 {[%clk 0:01:13]}  e4 {[%clk 0:01:40]} 24. fxe4 {[%clk 0:01:05]}  Rxf1+ {[%clk 0:01:39]} 25. Rxf1 {[%clk 0:01:05]}  Rxf1+ {[%clk 0:01:39]} 26. Nxf1 {[%clk 0:01:06]}  dxc4 {[%clk 0:01:40]} 27. Bxc4 {[%clk 0:01:01]}  Qc5 {[%clk 0:01:38]} 28. b3 {[%clk 0:00:52]}  b5 {[%clk 0:01:22]} 29. Bd3 {[%clk 0:00:53]}  Qe5 {[%clk 0:01:22]} 30. h3 {[%clk 0:00:24]}  b4 {[%clk 0:01:00]} 31. Bc4 {[%clk 0:00:20]}  Qc3 {[%clk 0:00:53]} 32. Qxc3 {[%clk 0:00:13]}  bxc3 {[%clk 0:00:54]} 33. Ne3 {[%clk 0:00:14]}  Bd7 {[%clk 0:00:50]} 34. Nc2 {[%clk 0:00:12]}  Bh6 {[%clk 0:00:42]} 35. Kg1 {[%clk 0:00:10]}  Kg7 {[%clk 0:00:42]} 36. Kf2 {[%clk 0:00:11]}  Kf6 {[%clk 0:00:42]} 37. Ke2 {[%clk 0:00:11]}  Ke5 {[%clk 0:00:42]} 38. Kd3 {[%clk 0:00:11]}  Bd2 {[%clk 0:00:35]} 39. Nd4 {[%clk 0:00:09]}  Kf4 {[%clk 0:00:30]} 40. Ne2+ {[%clk 0:00:09]}  Ke5 {[%clk 0:00:24]} 41. Nxc3 {[%clk 0:00:09]}  Be1 {[%clk 0:00:24]} 42. Ne2 {[%clk 0:00:08]}  Bc6 {[%clk 0:00:25]} 43. Bd5 {[%clk 0:00:09]}  Bb5+ {[%clk 0:00:25]} 44. Ke3 {[%clk 0:00:08]}  Bb4 {[%clk 0:00:23]} 45. Nf4 {[%clk 0:00:06]}  Bc5+ {[%clk 0:00:21]} 46. Kf3 {[%clk 0:00:07]}  Bd4 {[%clk 0:00:16]} 47. Ne6 {[%clk 0:00:06]}  Bb2 {[%clk 0:00:13]} 48. Ng5 {[%clk 0:00:03]}  h5 {[%clk 0:00:13]} 49. Nf7+ {[%clk 0:00:03]}  Kf6 {[%clk 0:00:13]} 50. Nd6 {[%clk 0:00:04]}  Bd3 {[%clk 0:00:12]} 51. Nc4 {[%clk 0:00:04]}  Bc3 {[%clk 0:00:12]} 52. Ke3 {[%clk 0:00:04]}  Bb1 {[%clk 0:00:13]} 53. a4 {[%clk 0:00:04]}  Bc2 {[%clk 0:00:13]} 54. Nd6 {[%clk 0:00:04]}  Ke5 {[%clk 0:00:12]} 55. Nc4+ {[%clk 0:00:04]}  Kf6 {[%clk 0:00:12]} 56. Nd6 {[%clk 0:00:04]}  Ke5 {[%clk 0:00:13]} 57. Nb5 {[%clk 0:00:04]}  Bb4 {[%clk 0:00:12]} 58. g4 {[%clk 0:00:04]}  h4 {[%clk 0:00:13]} 59. Na7 {[%clk 0:00:02]}  Bc5+ {[%clk 0:00:13]} 60. Kd2 {[%clk 0:00:02]}  Bxe4 {[%clk 0:00:13]} 61. Bxe4 {[%clk 0:00:02]}  Kxe4 {[%clk 0:00:14]} 62. Nc6 {[%clk 0:00:01]}  Kf3 {[%clk 0:00:15]} 63. Nxa5 {[%clk 0:00:02]}  Bb4+ {[%clk 0:00:15]} 64. Kd3 {[%clk 0:00:01]}  Bxa5 {[%clk 0:00:16]} 65. Kc4 {[%clk 0:00:02]}  Kg3 {[%clk 0:00:16]} 66. b4 {[%clk 0:00:03]}  Bb6 {[%clk 0:00:14]} 67. a5 {[%clk 0:00:03]}  Bf2 {[%clk 0:00:13]} 68. b5 {[%clk 0:00:04]}  Kxh3 {[%clk 0:00:14]} 69. b6 {[%clk 0:00:04]}  Kg2 {[%clk 0:00:14]} 70. Kb5 {[%clk 0:00:03]}  h3 {[%clk 0:00:14]} 71. a6 {[%clk 0:00:04]}  Bxb6 {[%clk 0:00:12]} 72. a7 {[%clk 0:00:05]}  Bxa7 {[%clk 0:00:12]} 73. Kc6 {[%clk 0:00:03]}  h2 {[%clk 0:00:12]} 74. Kd5 {[%clk 0:00:04]}  h1=Q {[%clk 0:00:13]} 75. Ke6 {[%clk 0:00:05]}  Qh4 {[%clk 0:00:13]} 76. g5 {[%clk 0:00:04]}  Qxg5 {[%clk 0:00:13]} 0-1


[Site "https://www.chess.com"]

[Event "Titled Tuesday Blitz February 15 Late 2022"]
[White "Rustemov, Alexander"]
[Black "Antova, Gabriela"]
[WhiteFideId "4119002"]
[BlackFideId "2915235"]
[WhiteElo "2778"]
[BlackElo "2184"]
[Result "1-0"]
[Round "01"]
[TimeControl "180+1"]
[Date "2022.02.16"]
[WhiteClock "0:00:36"]
[BlackClock "0:00:03"]

1. d4 {[%clk 0:03:00]}  d5 {[%clk 0:02:59]} 2. c4 {[%clk 0:03:00]}  dxc4 {[%clk 0:02:59]} 3. Nf3 {[%clk 0:03:00]}  Nf6 {[%clk 0:02:59]} 4. e3 {[%clk 0:03:00]}  b5 {[%clk 0:02:59]} 5. a4 {[%clk 0:02:51]}  b4 {[%clk 0:02:58]} 6. Bxc4 {[%clk 0:02:49]}  e6 {[%clk 0:02:59]} 7. O-O {[%clk 0:02:47]}  Be7 {[%clk 0:02:59]} 8. Nbd2 {[%clk 0:02:43]}  O-O {[%clk 0:02:58]} 9. b3 {[%clk 0:02:32]}  Bb7 {[%clk 0:02:57]} 10. Bb2 {[%clk 0:02:32]}  c5 {[%clk 0:02:55]} 11. Be2 {[%clk 0:02:25]}  Nbd7 {[%clk 0:02:47]} 12. Nc4 {[%clk 0:02:23]}  cxd4 {[%clk 0:02:36]} 13. Nxd4 {[%clk 0:02:12]}  Nc5 {[%clk 0:02:35]} 14. Bf3 {[%clk 0:02:10]}  Bxf3 {[%clk 0:02:30]} 15. Qxf3 {[%clk 0:02:06]}  Qd5 {[%clk 0:02:27]} 16. Nc6 {[%clk 0:02:02]}  Rfe8 {[%clk 0:02:03]} 17. N4a5 {[%clk 0:01:51]}  Qxf3 {[%clk 0:01:59]} 18. gxf3 {[%clk 0:01:50]}  Bf8 {[%clk 0:01:48]} 19. Bxf6 {[%clk 0:01:40]}  gxf6 {[%clk 0:01:47]} 20. Rac1 {[%clk 0:01:41]}  f5 {[%clk 0:01:41]} 21. Rc4 {[%clk 0:01:36]}  a6 {[%clk 0:00:34]} 22. Nxb4 {[%clk 0:01:25]}  Red8 {[%clk 0:00:28]} 23. Rfc1 {[%clk 0:01:21]}  Nd3 {[%clk 0:00:24]} 24. Nxd3 {[%clk 0:01:20]}  Rxd3 {[%clk 0:00:25]} 25. b4 {[%clk 0:01:16]}  Ra3 {[%clk 0:00:19]} 26. Rc8 {[%clk 0:01:04]}  Rxc8 {[%clk 0:00:19]} 27. Rxc8 {[%clk 0:01:04]}  Rxa4 {[%clk 0:00:19]} 28. Nc6 {[%clk 0:01:04]}  Kg7 {[%clk 0:00:20]} 29. Rc7 {[%clk 0:01:04]}  Bd6 {[%clk 0:00:18]} 30. Rb7 {[%clk 0:01:00]}  Kg6 {[%clk 0:00:11]} 31. f4 {[%clk 0:00:59]}  Ra1+ {[%clk 0:00:11]} 32. Kg2 {[%clk 0:00:59]}  Rb1 {[%clk 0:00:11]} 33. Rd7 {[%clk 0:00:55]}  Bf8 {[%clk 0:00:11]} 34. Ne5+ {[%clk 0:00:54]}  Kh6 {[%clk 0:00:07]} 35. Nxf7+ {[%clk 0:00:54]}  Kh5 {[%clk 0:00:07]} 36. Ng5 {[%clk 0:00:52]}  h6 {[%clk 0:00:06]} 37. Nxe6 {[%clk 0:00:51]}  Bxb4 {[%clk 0:00:06]} 38. Nd4 {[%clk 0:00:46]}  Kg6 {[%clk 0:00:06]} 39. Ra7 {[%clk 0:00:44]}  a5 {[%clk 0:00:06]} 40. Ra6+ {[%clk 0:00:44]}  Kf7 {[%clk 0:00:06]} 41. Nxf5 {[%clk 0:00:44]}  Rb2 {[%clk 0:00:05]} 42. Nxh6+ {[%clk 0:00:44]}  Kf8 {[%clk 0:00:05]} 43. Ng4 {[%clk 0:00:40]}  Ra2 {[%clk 0:00:04]} 44. Ne5 {[%clk 0:00:38]}  a4 {[%clk 0:00:03]} 45. f5 {[%clk 0:00:36]} 1-0


[Site "https://www.chess.com"]

[Event "Titled Tuesday Blitz February 15 Late 2022"]
[White "Saim, Mohamed Ilias"]
[Black "Gurevich, Dmitry"]
[WhiteFideId "7900465"]
[BlackFideId "2000407"]
[WhiteElo "2006"]
[BlackElo "2506"]
[Result "0-1"]
[Round "01"]
[TimeControl "180+1"]
[Date "2022.02.16"]
[WhiteClock "0:00:06"]
[BlackClock "0:00:53"]

1. d4 {[%clk 0:02:57]}  Nf6 {[%clk 0:02:59]} 2. Nf3 {[%clk 0:02:56]}  e6 {[%clk 0:02:58]} 3. e3 {[%clk 0:02:55]}  c5 {[%clk 0:02:57]} 4. Bd3 {[%clk 0:02:54]}  b6 {[%clk 0:02:57]} 5. b3 {[%clk 0:02:51]}  cxd4 {[%clk 0:02:52]} 6. exd4 {[%clk 0:02:50]}  Bb7 {[%clk 0:02:52]} 7. Bb2 {[%clk 0:02:49]}  Be7 {[%clk 0:02:53]} 8. Nbd2 {[%clk 0:02:49]}  O-O {[%clk 0:02:52]} 9. O-O {[%clk 0:02:49]}  a6 {[%clk 0:02:52]} 10. Ne5 {[%clk 0:02:39]}  d6 {[%clk 0:02:51]} 11. Ng4 {[%clk 0:01:58]}  Nbd7 {[%clk 0:02:50]} 12. f4 {[%clk 0:01:52]}  Nxg4 {[%clk 0:02:42]} 13. Qxg4 {[%clk 0:01:50]}  Nf6 {[%clk 0:02:41]} 14. Qg3 {[%clk 0:01:29]}  g6 {[%clk 0:02:21]} 15. Qh3 {[%clk 0:01:12]}  Rc8 {[%clk 0:02:08]} 16. Nf3 {[%clk 0:00:58]}  Bxf3 {[%clk 0:02:05]} 17. Rxf3 {[%clk 0:00:53]}  b5 {[%clk 0:02:03]} 18. Rg3 {[%clk 0:00:37]}  d5 {[%clk 0:01:50]} 19. Qh6 {[%clk 0:00:34]}  Re8 {[%clk 0:01:35]} 20. Rh3 {[%clk 0:00:27]}  Bf8 {[%clk 0:01:33]} 21. Qg5 {[%clk 0:00:18]}  Bg7 {[%clk 0:01:32]} 22. Rf1 {[%clk 0:00:17]}  Ne4 {[%clk 0:01:25]} 23. Qg4 {[%clk 0:00:12]}  f5 {[%clk 0:01:20]} 24. Qf3 {[%clk 0:00:11]}  Qb6 {[%clk 0:01:16]} 25. g4 {[%clk 0:00:11]}  Bxd4+ {[%clk 0:01:14]} 26. Bxd4 {[%clk 0:00:11]}  Qxd4+ {[%clk 0:01:14]} 27. Kg2 {[%clk 0:00:11]}  Nd2 {[%clk 0:01:10]} 28. Qf2 {[%clk 0:00:10]}  Qxf2+ {[%clk 0:01:09]} 29. Rxf2 {[%clk 0:00:10]}  Ne4 {[%clk 0:01:10]} 30. Rf1 {[%clk 0:00:09]}  Rc6 {[%clk 0:01:06]} 31. gxf5 {[%clk 0:00:09]}  exf5 {[%clk 0:01:06]} 32. Kh1 {[%clk 0:00:09]}  b4 {[%clk 0:01:04]} 33. Re1 {[%clk 0:00:08]}  a5 {[%clk 0:01:01]} 34. Rhe3 {[%clk 0:00:06]}  Kg7 {[%clk 0:01:00]} 35. Kg2 {[%clk 0:00:06]}  Kf6 {[%clk 0:00:56]} 36. Bb5 {[%clk 0:00:06]}  Rxc2+ {[%clk 0:00:54]} 37. Kf3 {[%clk 0:00:06]}  Rf2# {[%clk 0:00:53]} 0-1


[Site "https://www.chess.com"]

[Event "Titled Tuesday Blitz February 15 Late 2022"]
[White "Samarth, J Rao"]
[Black "Jacobson, Aaron"]
[WhiteFideId "46652370"]
[BlackFideId "2089912"]
[WhiteElo "1514"]
[BlackElo "2265"]
[Result "0-1"]
[Round "01"]
[TimeControl "180+1"]
[Date "2022.02.16"]
[WhiteClock "0:00:01"]
[BlackClock "0:00:18"]

1. c4 {[%clk 0:02:01]}  e5 {[%clk 0:02:46]} 2. Nc3 {[%clk 0:02:01]}  Nf6 {[%clk 0:02:46]} 3. Nf3 {[%clk 0:02:01]}  Nc6 {[%clk 0:02:44]} 4. e3 {[%clk 0:02:00]}  Bb4 {[%clk 0:02:41]} 5. Qc2 {[%clk 0:02:00]}  d6 {[%clk 0:02:41]} 6. Ne2 {[%clk 0:01:59]}  a5 {[%clk 0:02:41]} 7. a3 {[%clk 0:01:58]}  Bc5 {[%clk 0:02:41]} 8. d4 {[%clk 0:01:55]}  exd4 {[%clk 0:02:40]} 9. Nexd4 {[%clk 0:01:40]}  O-O {[%clk 0:02:37]} 10. b3 {[%clk 0:01:39]}  Nxd4 {[%clk 0:02:31]} 11. Nxd4 {[%clk 0:01:38]}  Bxd4 {[%clk 0:02:24]} 12. exd4 {[%clk 0:01:37]}  Re8+ {[%clk 0:02:25]} 13. Be2 {[%clk 0:01:36]}  Qe7 {[%clk 0:02:25]} 14. Be3 {[%clk 0:01:33]}  Ng4 {[%clk 0:02:22]} 15. Bxg4 {[%clk 0:01:32]}  Bxg4 {[%clk 0:02:23]} 16. h3 {[%clk 0:01:31]}  Bh5 {[%clk 0:02:19]} 17. d5 {[%clk 0:01:26]}  Bg6 {[%clk 0:02:06]} 18. Qc3 {[%clk 0:01:24]}  Be4 {[%clk 0:02:06]} 19. O-O {[%clk 0:01:23]}  Qh4 {[%clk 0:02:07]} 20. f3 {[%clk 0:01:19]}  Bf5 {[%clk 0:02:05]} 21. Bf2 {[%clk 0:01:18]}  Qg5 {[%clk 0:02:03]} 22. g4 {[%clk 0:01:02]}  h5 {[%clk 0:01:52]} 23. Rfe1 {[%clk 0:00:40]}  hxg4 {[%clk 0:01:45]} 24. hxg4 {[%clk 0:00:40]}  a4 {[%clk 0:01:42]} 25. Be3 {[%clk 0:00:35]}  Qg6 {[%clk 0:01:39]} 26. Kf2 {[%clk 0:00:33]}  Bd7 {[%clk 0:01:18]} 27. b4 {[%clk 0:00:33]}  f5 {[%clk 0:01:14]} 28. gxf5 {[%clk 0:00:31]}  Qxf5 {[%clk 0:01:12]} 29. Rg1 {[%clk 0:00:31]}  Re5 {[%clk 0:01:08]} 30. Bd4 {[%clk 0:00:27]}  Rae8 {[%clk 0:00:53]} 31. Bxe5 {[%clk 0:00:27]}  dxe5 {[%clk 0:00:54]} 32. Rg3 {[%clk 0:00:17]}  Re7 {[%clk 0:00:47]} 33. Rag1 {[%clk 0:00:18]}  Qh5 {[%clk 0:00:48]} 34. Qe3 {[%clk 0:00:14]}  e4 {[%clk 0:00:41]} 35. Qd4 {[%clk 0:00:10]}  e3+ {[%clk 0:00:39]} 36. Ke2 {[%clk 0:00:10]}  Qh7 {[%clk 0:00:38]} 37. R1g2 {[%clk 0:00:09]}  Qc2+ {[%clk 0:00:38]} 38. Ke1 {[%clk 0:00:09]}  Qh7 {[%clk 0:00:29]} 39. Qc3 {[%clk 0:00:04]}  e2 {[%clk 0:00:24]} 40. Rxe2 {[%clk 0:00:03]}  Qh1+ {[%clk 0:00:19]} 41. Kd2 {[%clk 0:00:01]}  Rxe2+ {[%clk 0:00:19]} 42. Kxe2 {[%clk 0:00:02]}  Qh2+ {[%clk 0:00:20]} 43. Ke3 {[%clk 0:00:02]}  Qxg3 {[%clk 0:00:20]} 44. Qd4 {[%clk 0:00:02]}  Qg1+ {[%clk 0:00:20]} 45. Ke4 {[%clk 0:00:02]}  Bf5+ {[%clk 0:00:20]} 46. Ke5 {[%clk 0:00:02]}  Qg5 {[%clk 0:00:19]} 47. Qf4 {[%clk 0:00:01]}  Qf6# {[%clk 0:00:18]} 0-1


[Site "https://www.chess.com"]

[Event "Titled Tuesday Blitz February 15 Late 2022"]
[White "Sohal, Tanraj"]
[Black "Van den Dikkenberg, Erik"]
[WhiteFideId "2608499"]
[BlackFideId "1005880"]
[WhiteElo "2200"]
[BlackElo "2118"]
[Result "1-0"]
[Round "01"]
[TimeControl "180+1"]
[Date "2022.02.16"]
[WhiteClock "0:01:09"]
[BlackClock "0:00:07"]

1. d4 {[%clk 0:02:56]}  Nf6 {[%clk 0:02:59]} 2. Nf3 {[%clk 0:02:57]}  g6 {[%clk 0:02:59]} 3. g3 {[%clk 0:02:57]}  Bg7 {[%clk 0:03:00]} 4. Bg2 {[%clk 0:02:54]}  O-O {[%clk 0:03:00]} 5. O-O {[%clk 0:02:54]}  d6 {[%clk 0:03:00]} 6. b3 {[%clk 0:02:54]}  Nbd7 {[%clk 0:03:00]} 7. Bb2 {[%clk 0:02:55]}  c6 {[%clk 0:03:00]} 8. c4 {[%clk 0:02:54]}  Qc7 {[%clk 0:03:00]} 9. Nc3 {[%clk 0:02:53]}  e5 {[%clk 0:02:59]} 10. d5 {[%clk 0:02:50]}  a5 {[%clk 0:02:53]} 11. Rc1 {[%clk 0:02:47]}  Nc5 {[%clk 0:02:48]} 12. Nd2 {[%clk 0:02:43]}  Bg4 {[%clk 0:02:36]} 13. h3 {[%clk 0:02:40]}  Bf5 {[%clk 0:02:27]} 14. g4 {[%clk 0:02:39]}  Bd7 {[%clk 0:02:21]} 15. f4 {[%clk 0:02:33]}  exf4 {[%clk 0:02:14]} 16. Rxf4 {[%clk 0:02:32]}  h5 {[%clk 0:01:32]} 17. Qf1 {[%clk 0:02:27]}  Nh7 {[%clk 0:01:26]} 18. gxh5 {[%clk 0:02:24]}  gxh5 {[%clk 0:01:26]} 19. Nde4 {[%clk 0:02:16]}  Rae8 {[%clk 0:01:17]} 20. Nxc5 {[%clk 0:02:07]}  dxc5 {[%clk 0:01:15]} 21. dxc6 {[%clk 0:02:00]}  Bxc6 {[%clk 0:01:13]} 22. Nd5 {[%clk 0:01:56]}  Bxd5 {[%clk 0:01:09]} 23. Bxg7 {[%clk 0:01:56]}  Bxg2 {[%clk 0:00:26]} 24. Qxg2 {[%clk 0:01:53]}  Qxf4 {[%clk 0:00:26]} 25. Bh6+ {[%clk 0:01:53]}  Ng5 {[%clk 0:00:25]} 26. Bxg5 {[%clk 0:01:53]}  Qf5 {[%clk 0:00:24]} 27. Rf1 {[%clk 0:01:28]}  Qg6 {[%clk 0:00:24]} 28. Rf6 {[%clk 0:01:28]}  Qg7 {[%clk 0:00:24]} 29. h4 {[%clk 0:01:29]}  Re4 {[%clk 0:00:22]} 30. Qf3 {[%clk 0:01:21]}  Rg4+ {[%clk 0:00:21]} 31. Kf2 {[%clk 0:01:22]}  Re8 {[%clk 0:00:19]} 32. Qf5 {[%clk 0:01:19]}  Ree4 {[%clk 0:00:15]} 33. Rd6 {[%clk 0:01:11]}  Rxg5 {[%clk 0:00:09]} 34. Rd8+ {[%clk 0:01:10]}  Qf8 {[%clk 0:00:07]} 35. Rxf8+ {[%clk 0:01:09]} 1-0


[Site "https://www.chess.com"]

[Event "Titled Tuesday Blitz February 15 Late 2022"]
[White "Stanisz, Patryk"]
[Black "Jaferian, Koosha"]
[WhiteFideId "1123106"]
[BlackFideId "12507440"]
[WhiteElo "1876"]
[BlackElo "2027"]
[Result "1-0"]
[Round "01"]
[TimeControl "180+1"]
[Date "2022.02.16"]
[WhiteClock "0:00:12"]
[BlackClock "0:00:10"]

1. Nf3 {[%clk 0:02:54]}  d5 {[%clk 0:02:59]} 2. d4 {[%clk 0:02:53]}  Nf6 {[%clk 0:02:54]} 3. c4 {[%clk 0:02:53]}  c6 {[%clk 0:02:55]} 4. Nc3 {[%clk 0:02:53]}  a6 {[%clk 0:02:53]} 5. e3 {[%clk 0:02:51]}  b5 {[%clk 0:02:53]} 6. b3 {[%clk 0:02:50]}  e6 {[%clk 0:02:53]} 7. Be2 {[%clk 0:02:50]}  Nbd7 {[%clk 0:02:49]} 8. O-O {[%clk 0:02:49]}  Bd6 {[%clk 0:02:49]} 9. Bb2 {[%clk 0:02:46]}  O-O {[%clk 0:02:49]} 10. Qc2 {[%clk 0:02:43]}  b4 {[%clk 0:02:40]} 11. Na4 {[%clk 0:02:38]}  Ne4 {[%clk 0:02:39]} 12. Nd2 {[%clk 0:02:31]}  Nxd2 {[%clk 0:02:34]} 13. Qxd2 {[%clk 0:02:31]}  a5 {[%clk 0:02:27]} 14. Rae1 {[%clk 0:02:19]}  f5 {[%clk 0:02:26]} 15. f3 {[%clk 0:02:18]}  Nf6 {[%clk 0:02:24]} 16. Bd3 {[%clk 0:02:00]}  Ba6 {[%clk 0:02:23]} 17. Qe2 {[%clk 0:01:58]}  Qc7 {[%clk 0:02:02]} 18. g3 {[%clk 0:01:39]}  Rab8 {[%clk 0:01:28]} 19. Rc1 {[%clk 0:01:36]}  Rfc8 {[%clk 0:01:26]} 20. Kg2 {[%clk 0:00:52]}  Qe7 {[%clk 0:01:14]} 21. cxd5 {[%clk 0:00:43]}  Bxd3 {[%clk 0:01:13]} 22. Qxd3 {[%clk 0:00:44]}  cxd5 {[%clk 0:01:12]} 23. Qa6 {[%clk 0:00:38]}  Rxc1 {[%clk 0:00:52]} 24. Rxc1 {[%clk 0:00:39]}  Nh5 {[%clk 0:00:37]} 25. Rc6 {[%clk 0:00:23]}  Rd8 {[%clk 0:00:35]} 26. Nb6 {[%clk 0:00:13]}  Qg5 {[%clk 0:00:30]} 27. f4 {[%clk 0:00:12]}  Qg4 {[%clk 0:00:26]} 28. Rc8 {[%clk 0:00:08]}  Rf8 {[%clk 0:00:17]} 29. Rxf8+ {[%clk 0:00:08]}  Bxf8 {[%clk 0:00:18]} 30. Nd7 {[%clk 0:00:07]}  Kf7 {[%clk 0:00:12]} 31. Ne5+ {[%clk 0:00:06]}  Kg8 {[%clk 0:00:10]} 32. Nxg4 {[%clk 0:00:07]}  fxg4 {[%clk 0:00:11]} 33. Qxa5 {[%clk 0:00:08]}  Nf6 {[%clk 0:00:10]} 34. Qd8 {[%clk 0:00:08]}  Kf7 {[%clk 0:00:11]} 35. Qb8 {[%clk 0:00:07]}  Nd7 {[%clk 0:00:11]} 36. Qc7 {[%clk 0:00:07]}  Ke8 {[%clk 0:00:11]} 37. Qc8+ {[%clk 0:00:06]}  Ke7 {[%clk 0:00:12]} 38. Bc1 {[%clk 0:00:06]}  Nf6 {[%clk 0:00:11]} 39. Bd2 {[%clk 0:00:07]}  Kf7 {[%clk 0:00:11]} 40. Qb7+ {[%clk 0:00:06]}  Kg8 {[%clk 0:00:10]} 41. Bxb4 {[%clk 0:00:07]}  Bxb4 {[%clk 0:00:08]} 42. Qxb4 {[%clk 0:00:08]}  Ne4 {[%clk 0:00:09]} 43. Qb8+ {[%clk 0:00:09]}  Kf7 {[%clk 0:00:09]} 44. a4 {[%clk 0:00:09]}  Nf6 {[%clk 0:00:06]} 45. a5 {[%clk 0:00:09]}  Nd7 {[%clk 0:00:07]} 46. Qc7 {[%clk 0:00:09]}  Ke7 {[%clk 0:00:07]} 47. a6 {[%clk 0:00:10]}  Ke8 {[%clk 0:00:07]} 48. Qc8+ {[%clk 0:00:10]}  Ke7 {[%clk 0:00:07]} 49. a7 {[%clk 0:00:11]}  Nb6 {[%clk 0:00:08]} 50. Qb7+ {[%clk 0:00:11]}  Nd7 {[%clk 0:00:08]} 51. Qxd7+ {[%clk 0:00:11]}  Kf6 {[%clk 0:00:09]} 52. a8=Q {[%clk 0:00:11]}  h5 {[%clk 0:00:09]} 53. Qdd8+ {[%clk 0:00:11]}  Kg6 {[%clk 0:00:09]} 54. Qac8 {[%clk 0:00:11]}  h4 {[%clk 0:00:10]} 55. Qxe6+ {[%clk 0:00:11]}  Kh7 {[%clk 0:00:11]} 56. Qg5 {[%clk 0:00:11]}  h3+ {[%clk 0:00:12]} 57. Kf1 {[%clk 0:00:11]}  Kh8 {[%clk 0:00:10]} 58. Qe8+ {[%clk 0:00:11]}  Kh7 {[%clk 0:00:10]} 59. Qeg6+ {[%clk 0:00:11]}  Kg8 {[%clk 0:00:10]} 60. Qxg7# {[%clk 0:00:12]} 1-0


[Site "https://www.chess.com"]